bitfinex/quotes_BTCUSD_20250108
["timestamp","ask_amount","ask_price","bid_price","bid_amount"]
[1736304930162,0.0001708,97067.0,97066.0,0.56002391]
[1736304931094,0.0001708,97067.0,97066.0,0.0804683]
[1736304932842,0.0001708,97067.0,97066.0,0.17284244]
[1736304933904,0.0001708,97067.0,97066.0,0.10083921]
[1736304934472,0.0001708,97067.0,97066.0,0.0804683]
[1736304935087,0.0001708,97067.0,97066.0,0.0335683]
[1736304935736,1.2540028,97067.0,97066.0,0.05396179]
[1736304936084,1.2302118,97067.0,97066.0,0.04786377]
[1736304936744,1.2302118,97067.0,97066.0,0.02747028]
[1736304937299,0.8395608,97067.0,97066.0,0.02747028]
[1736304937501,0.8395608,97067.0,97066.0,0.03356359]
[1736304937857,0.8395608,97067.0,97066.0,0.14635157]
[1736304938090,0.8178928,97067.0,97066.0,0.14635157]
[1736304938294,0.2596188,97067.0,97066.0,0.14635157]
[1736304938500,0.2596188,97067.0,97066.0,0.05396309]
[1736304938501,0.1549208,97067.0,97066.0,0.05396309]
[1736304939235,0.1549208,97067.0,97066.0,0.53367705]
[1736304939445,0.1197838,97067.0,97066.0,0.53367705]
[1736304940292,0.1197838,97067.0,97066.0,0.57988646]
[1736304942750,0.1197838,97067.0,97066.0,0.39510586]
[1736304943335,0.1197838,97067.0,97066.0,0.62627261]
[1736304944212,0.1197838,97067.0,97066.0,0.39798585]
[1736304951133,0.1197838,97067.0,97066.0,1.15522616]
[1736304951947,0.4332258,97067.0,97066.0,0.87688114]
[1736304952134,0.5932258,97067.0,97066.0,0.87688114]
[1736304960597,0.0001708,97067.0,97066.0,0.87688114]
[1736304960807,0.0001708,97067.0,97066.0,1.00518114]
[1736304961713,0.0001708,97067.0,97066.0,0.92548114]
[1736304963518,0.0001708,97067.0,97066.0,0.87688114]
[1736304966911,2.3707928,97067.0,97066.0,0.85648164]
[1736304967776,2.3707928,97067.0,97066.0,0.36130572]
[1736304967777,2.4463928,97067.0,97066.0,0.36130572]
[1736304967991,2.45647328,97067.0,97066.0,0.36130572]
[1736304968773,2.90728428,97067.0,97066.0,0.36130572]
[1736304968976,2.90728428,97067.0,97066.0,0.36030572]
[1736304969178,2.90728428,97067.0,97066.0,0.36766151]
[1736304969378,1.11401328,97067.0,97066.0,0.36866151]
[1736304969624,0.95086328,97067.0,97066.0,0.37762571]
[1736304970197,0.9062548,97067.0,97066.0,0.37662571]
[1736304970396,0.4609398,97067.0,97066.0,0.37662571]
[1736304970598,0.4155938,97067.0,97066.0,0.37662571]
[1736304971239,0.4145938,97067.0,97066.0,0.37662571]
[1736304972404,0.4125938,97067.0,97066.0,0.37662571]
[1736304972817,0.4125938,97067.0,97066.0,0.37762571]
[1736304976677,0.4125938,97067.0,97066.0,0.36129662]
[1736304978723,0.4125938,97067.0,97066.0,0.36029662]
[1736304979130,0.4125938,97067.0,97066.0,0.36129662]
[1736304979285,0.4125938,97067.0,97066.0,0.36029662]
[1736304979667,0.4125938,97067.0,97066.0,0.36129662]
[1736304980630,0.51162821,97067.0,97066.0,0.36129662]
[1736304981001,0.51162821,97067.0,97066.0,0.35110697]
[1736304981875,0.51162821,97067.0,97066.0,0.35010697]
[1736304982121,0.59452821,97067.0,97066.0,0.35010697]
[1736304982260,0.79252821,97067.0,97066.0,0.58195994]
[1736304983233,0.79252821,97067.0,97066.0,0.35010697]
[1736304983397,0.79452821,97067.0,97066.0,0.35010697]
[1736304983635,0.79352821,97067.0,97066.0,0.35010697]
[1736304984043,0.79252821,97067.0,97066.0,0.0089642]
[1736304984452,0.078,97065.0,97063.0,0.09273598]
[1736304984657,0.078,97065.0,97057.0,0.18546009]
[1736304984658,3.27651641,97064.0,97059.0,0.09273598]
[1736304984873,0.15,97061.0,97059.0,0.09273598]
[1736304985008,3.07046741,97060.0,97059.0,0.09273598]
[1736304985223,0.15,97059.0,97058.0,0.13910398]
[1736304985426,2.92616341,97059.0,97058.0,0.13910398]
[1736304985665,2.94679941,97059.0,97058.0,0.13910398]
[1736304985800,2.43164641,97059.0,97057.0,0.13910398]
[1736304986022,2.82085141,97058.0,97057.0,0.13910398]
[1736304986223,3.27652941,97058.0,97057.0,0.13910398]
[1736304986426,3.16022241,97058.0,97057.0,0.13910398]
[1736304986626,3.05616341,97058.0,97057.0,0.13910398]
[1736304987080,3.13636341,97058.0,97057.0,0.13910398]
[1736304987281,3.13636341,97058.0,97051.0,0.23185297]
[1736304987282,0.15,97057.0,97056.0,0.13910398]
[1736304987485,3.07046741,97057.0,97056.0,0.13910398]
[1736304988110,0.356066,97056.0,97055.0,0.13910398]
[1736304988310,3.14076441,97056.0,97055.0,0.13910398]
[1736304988500,3.27653341,97056.0,97055.0,0.13910398]
[1736304989178,3.27653341,97056.0,97055.0,0.48104422]
[1736304989729,3.27653341,97056.0,97051.0,0.09262527]
[1736304989730,2.86013241,97056.0,97051.0,0.09262527]
[1736304989939,0.206071,97054.0,97051.0,0.09262527]
[1736304990176,0.206075,97052.0,97051.0,0.09262527]
[1736304990377,2.27046041,97052.0,97051.0,0.09262527]
[1736304990518,2.50602941,97052.0,97049.0,0.13910398]
[1736304990717,0.206079,97050.0,97049.0,0.13910398]
[1736304990900,2.24865941,97050.0,97049.0,0.13910398]
[1736304991302,2.22916541,97050.0,97049.0,0.13910398]
[1736304991746,2.19008141,97050.0,97049.0,0.13910398]
[1736304991941,2.03008141,97050.0,97048.0,0.13910398]
[1736304992206,1.78575541,97049.0,97048.0,0.13910398]
[1736304992446,0.206083,97048.0,97047.0,0.13910398]
[1736304992624,1.881832,97048.0,97047.0,0.13910398]
[1736304992832,0.454099,97048.0,97047.0,0.13910398]
[1736304993030,0.4875,97053.0,97046.0,0.13910398]
[1736304993300,0.2599,97053.0,97048.0,0.001]
[1736304993475,0.16012,97052.0,97047.0,0.01018381]
[1736304993731,0.380168,97054.0,97047.0,0.01118381]
[1736304993906,0.193888,97053.0,97050.0,0.13910398]
[1736304994109,0.502811,97054.0,97050.0,0.13910398]
[1736304994313,0.521262,97054.0,97050.0,0.13910398]
[1736304994653,0.521262,97054.0,97051.0,0.36817223]
[1736304995091,0.521262,97054.0,97052.0,0.02648152]
[1736304995302,0.521262,97054.0,97052.0,0.36817223]
[1736304995867,0.521262,97054.0,97053.0,0.02648152]
[1736304996024,0.16414,97054.0,97053.0,0.36817223]
[1736304996493,0.145891,97054.0,97053.0,0.36817223]
[1736304996696,0.146891,97054.0,97053.0,0.36817223]
[1736304997283,0.148891,97054.0,97053.0,0.36817223]
[1736304998493,0.145891,97054.0,97053.0,0.36817223]
[1736304998711,0.01042348,97058.0,97053.0,0.36817223]
[1736304998712,0.527657,97057.0,97053.0,0.36817223]
[1736304998978,0.48472,97057.0,97053.0,0.36917223]
[1736304999166,0.482888,97056.0,97053.0,0.36917223]
[1736304999294,0.452313,97055.0,97054.0,0.02648152]
[1736304999529,0.15,97060.0,97054.0,0.02648152]
[1736304999956,0.292813,97059.0,97055.0,0.09539771]
[1736305000188,0.3242,97070.0,97056.0,0.0493]
[1736305000423,0.393599,97066.0,97057.0,0.01629771]
[1736305000659,0.29753,97066.0,97058.0,0.206062]
[1736305000888,0.0793,97091.0,97065.0,0.077]
[1736305001101,0.01054393,97082.0,97066.0,0.20707511]
[1736305001357,0.01054393,97082.0,97066.0,0.253145]
[1736305001778,0.01054393,97082.0,97066.0,0.30000498]
[1736305001981,0.575913,97074.0,97066.0,0.50604998]
[1736305002407,0.575913,97074.0,97067.0,0.03667617]
[1736305002580,0.575913,97074.0,97068.0,0.206041]
[1736305002997,0.575913,97074.0,97069.0,0.02648152]
[1736305003402,0.575913,97074.0,97069.0,0.36817223]
[1736305003560,0.575913,97074.0,97070.0,0.02648152]
[1736305003758,0.575913,97074.0,97070.0,0.36817223]
[1736305003963,0.575913,97074.0,97071.0,0.02648152]
[1736305004463,0.575913,97074.0,97072.0,0.23133107]
[1736305004688,0.575913,97074.0,97073.0,0.02648152]
[1736305005503,0.575913,97074.0,97073.0,0.36817223]
[1736305005762,0.575913,97074.0,97073.0,0.37588087]
[1736305005890,0.575913,97074.0,97073.0,0.35958316]
[1736305006476,0.577913,97074.0,97073.0,0.35958316]
[1736305007088,0.577913,97074.0,97073.0,0.37586294]
[1736305007723,0.577913,97074.0,97073.0,0.60714429]
[1736305009601,0.002,97074.0,97073.0,0.59086451]
[1736305012112,0.183808,97074.0,97073.0,0.59086451]
[1736305012339,0.109608,97074.0,97073.0,0.59086451]
[1736305012554,0.002,97074.0,97073.0,0.59086451]
[1736305013234,0.184727,97074.0,97073.0,0.59086451]
[1736305013441,0.002,97074.0,97073.0,0.59086451]
[1736305013642,0.184727,97074.0,97073.0,0.59086451]
[1736305013891,0.110527,97074.0,97073.0,0.59086451]
[1736305014070,0.002,97074.0,97073.0,0.35958316]
[1736305018682,0.146781,97074.0,97073.0,0.54452645]
[1736305020188,0.146781,97074.0,97073.0,0.35958316]
[1736305020871,0.146781,97074.0,97073.0,0.34939935]
[1736305021172,0.146781,97074.0,97073.0,0.00770864]
[1736305021561,0.412062,97073.0,97069.0,0.09247007]
[1736305021765,0.206034,97071.0,97069.0,0.09247007]
[1736305021941,1.681534,97070.0,97069.0,0.09247007]
[1736305022145,1.620388,97070.0,97069.0,0.09247007]
[1736305022327,1.604388,97070.0,97069.0,0.09247007]
[1736305022529,1.04874,97070.0,97069.0,0.1026502]
[1736305022825,1.04874,97070.0,97069.0,0.01018013]
[1736305022826,0.9544,97070.0,97069.0,0.01018013]
[1736305023051,0.49042,97070.0,97069.0,0.01018013]
[1736305023235,0.469787,97070.0,97069.0,0.01118013]
[1736305023938,0.469787,97070.0,97069.0,0.01018013]
[1736305024489,0.47982869,97070.0,97069.0,0.01018013]
[1736305024691,0.47982869,97070.0,97069.0,0.01118013]
[1736305026051,0.47982869,97070.0,97069.0,0.01018013]
[1736305026531,0.48082869,97070.0,97069.0,0.01018013]
[1736305026965,0.48182869,97070.0,97069.0,0.01018013]
[1736305027752,0.48082869,97070.0,97069.0,0.01018013]
[1736305028489,0.47982869,97070.0,97069.0,0.01018013]
[1736305028711,0.48082869,97070.0,97069.0,0.01018013]
[1736305028855,0.48182869,97070.0,97069.0,0.01018013]
[1736305030055,1.59113569,97070.0,97069.0,0.01018013]
[1736305030300,1.66589869,97070.0,97069.0,0.01018013]
[1736305030447,1.57802669,97070.0,97069.0,0.01018013]
[1736305030720,1.6770611,97070.0,97069.0,0.01018013]
[1736305040711,1.6770611,97070.0,97069.0,0.1026502]
[1736305045655,1.6770611,97070.0,97069.0,0.01018013]
[1736305045862,0.1110761,97070.0,97069.0,0.01018013]
[1736305046112,2.3596751,97070.0,97069.0,0.01018013]
[1736305046367,2.3429411,97070.0,97069.0,0.01912905]
[1736305046596,2.1765081,97070.0,97069.0,0.01018013]
[1736305047514,2.0695671,97070.0,97069.0,0.01018013]
[1736305051965,2.0695671,97070.0,97069.0,0.02648231]
[1736305052181,2.0695671,97070.0,97069.0,0.11895238]
[1736305053738,2.0695671,97070.0,97069.0,0.1026502]
[1736305054982,2.0695671,97070.0,97069.0,0.02648469]
[1736305056429,2.0695671,97070.0,97069.0,0.10283629]
[1736305057871,2.0695671,97070.0,97069.0,0.01018013]
[1736305058082,2.0695671,97070.0,97069.0,0.02648538]
[1736305058256,2.0695671,97070.0,97069.0,0.0354343]
[1736305058474,0.1110761,97070.0,97069.0,0.0354343]
[1736305058970,2.9325091,97070.0,97069.0,0.0354343]
[1736305059148,2.9325091,97070.0,97069.0,0.01912905]
[1736305059349,2.8823571,97070.0,97069.0,0.01018013]
[1736305059571,2.0537811,97070.0,97069.0,0.01018013]
[1736305059979,2.0537811,97070.0,97069.0,0.01912905]
[1736305060140,2.0537811,97070.0,97069.0,0.49997963]
[1736305060356,2.0537811,97070.0,97069.0,0.51628499]
[1736305060764,2.0527811,97070.0,97069.0,0.51628499]
[1736305061019,2.0527811,97070.0,97069.0,0.17413952]
[1736305061219,2.0537811,97070.0,97069.0,0.17413952]
[1736305061566,2.0537811,97070.0,97069.0,0.03543441]
[1736305061988,2.0537811,97070.0,97069.0,0.02648549]
[1736305062184,2.0537811,97070.0,97069.0,0.36871394]
[1736305062630,2.0537811,97070.0,97069.0,0.37766103]
[1736305063086,2.0537811,97070.0,97069.0,0.56260432]
[1736305064714,2.0537811,97070.0,97069.0,0.37766103]
[1736305066054,2.0132791,97070.0,97069.0,0.37766103]
[1736305066598,2.0132791,97070.0,97069.0,0.36871394]
[1736305069209,2.0132791,97070.0,97069.0,0.35240858]
[1736305074201,2.0132791,97070.0,97069.0,0.36135567]
[1736305075041,2.0132791,97070.0,97069.0,0.37766259]
[1736305075446,2.1632791,97070.0,97069.0,0.37766259]
[1736305075661,2.2455791,97070.0,97069.0,0.37766259]
[1736305075833,2.5697791,97070.0,97069.0,0.37766259]
[1736305076055,2.5697791,97070.0,97069.0,0.36135567]
[1736305076258,2.5697791,97070.0,97069.0,0.50059881]
[1736305076462,2.59815625,97070.0,97069.0,0.50059881]
[1736305076701,2.63233382,97070.0,97069.0,0.49041868]
[1736305077328,2.63233382,97070.0,97069.0,0.00894709]
[1736305077737,0.379039,97069.0,97068.0,0.09281613]
[1736305077985,0.379043,97067.0,97066.0,0.09281613]
[1736305078220,3.29951041,97067.0,97066.0,0.09281613]
[1736305078565,3.42681041,97067.0,97066.0,0.09281613]
[1736305079613,3.42781041,97067.0,97066.0,0.09281613]
[1736305079871,0.1,97063.0,97061.0,0.09281613]
[1736305080115,3.27652041,97062.0,97061.0,0.09281613]
[1736305080572,3.79165041,97062.0,97061.0,0.09281613]
[1736305081600,3.79165041,97062.0,97059.0,0.13924314]
[1736305081601,0.15,97061.0,97060.0,0.13924314]
[1736305081798,3.90979741,97061.0,97060.0,0.1393376]
[1736305082892,3.90979741,97061.0,97060.0,9.446e-05]
[1736305084145,3.90979741,97061.0,97060.0,0.00109446]
[1736305084444,3.90979741,97061.0,97060.0,9.446e-05]
[1736305084709,3.91279741,97061.0,97060.0,9.446e-05]
[1736305085869,3.91379741,97061.0,97060.0,0.09281568]
[1736305090597,3.91379741,97061.0,97060.0,9.446e-05]
[1736305090873,3.99289741,97061.0,97060.0,9.446e-05]
[1736305091378,3.62002241,97061.0,97060.0,9.446e-05]
[1736305091537,3.00065341,97061.0,97060.0,9.446e-05]
[1736305092727,2.97543341,97061.0,97060.0,9.446e-05]
[1736305093669,2.92155341,97061.0,97060.0,9.446e-05]
[1736305093867,1.09236441,97061.0,97060.0,9.446e-05]
[1736305094083,2.33826941,97061.0,97060.0,9.446e-05]
[1736305094445,2.14199341,97061.0,97060.0,9.446e-05]
[1736305094671,1.89373141,97061.0,97060.0,9.446e-05]
[1736305094870,1.765043,97061.0,97060.0,9.446e-05]
[1736305095438,1.765043,97061.0,97060.0,0.1393376]
[1736305095646,1.728379,97061.0,97060.0,0.1393376]
[1736305095821,1.728379,97061.0,97060.0,0.14703371]
[1736305096281,1.729379,97061.0,97060.0,0.15720537]
[1736305096491,1.729379,97061.0,97060.0,0.35998181]
[1736305097252,1.82841341,97061.0,97060.0,0.34981015]
[1736305097694,1.82741341,97061.0,97060.0,0.00779057]
[1736305098070,1.82841341,97061.0,97060.0,9.446e-05]
[1736305098308,1.82741341,97061.0,97060.0,9.446e-05]
[1736305098715,1.82841341,97061.0,97060.0,9.446e-05]
[1736305098917,1.82741341,97061.0,97060.0,9.446e-05]
[1736305099233,1.82841341,97061.0,97060.0,9.446e-05]
[1736305099804,1.83041341,97061.0,97060.0,9.446e-05]
[1736305104983,1.85341341,97061.0,97060.0,9.446e-05]
[1736305105375,1.93521341,97061.0,97060.0,9.446e-05]
[1736305105581,1.93221341,97061.0,97060.0,9.446e-05]
[1736305105898,1.93421341,97061.0,97060.0,9.446e-05]
[1736305106243,1.93221341,97061.0,97060.0,9.446e-05]
[1736305106422,1.93821341,97061.0,97060.0,9.446e-05]
[1736305106672,0.560889,97045.0,97044.0,0.09265769]
[1736305106845,4.05036641,97045.0,97044.0,0.09265769]
[1736305107678,1.22893341,97045.0,97044.0,0.09265769]
[1736305107878,0.15,97043.0,97032.0,0.09265769]
[1736305108080,0.356115,97033.0,97032.0,0.09265769]
[1736305108308,2.010292,97033.0,97032.0,0.09265769]
[1736305108484,2.318975,97033.0,97030.0,0.13898653]
[1736305108688,0.206119,97031.0,97030.0,0.13898653]
[1736305108842,2.804119,97031.0,97030.0,0.13898653]
[1736305109049,2.980365,97031.0,97030.0,0.13898653]
[1736305109245,2.9417,97031.0,97030.0,0.13898653]
[1736305109455,3.012981,97031.0,97030.0,0.35208132]
[1736305109838,3.01303188,97031.0,97030.0,0.36051383]
[1736305113154,3.02315558,97031.0,97030.0,0.49939466]
[1736305114828,3.12218999,97031.0,97030.0,0.49939466]
[1736305115084,3.63731999,97031.0,97030.0,0.49939466]
[1736305115430,3.63731999,97031.0,97030.0,0.00843251]
[1736305115636,3.63731999,97031.0,97028.0,0.09267096]
[1736305115840,0.206123,97029.0,97028.0,0.09267096]
[1736305116137,3.12659041,97029.0,97028.0,0.09267096]
[1736305116704,3.64172041,97029.0,97028.0,0.09267096]
[1736305117145,3.64172041,97029.0,97028.0,8.53e-05]
[1736305117738,3.74075482,97029.0,97028.0,8.53e-05]
[1736305118078,3.64172041,97029.0,97028.0,8.53e-05]
[1736305118287,3.79172041,97029.0,97028.0,8.53e-05]
[1736305118494,3.60478841,97029.0,97028.0,8.53e-05]
[1736305121355,4.03508841,97029.0,97028.0,8.53e-05]
[1736305121561,4.43412282,97029.0,97028.0,8.53e-05]
[1736305121775,4.48690273,97029.0,97028.0,8.53e-05]
[1736305122328,4.51818227,97029.0,97028.0,8.53e-05]
[1736305122614,4.53598212,97029.0,97028.0,8.53e-05]
[1736305123444,0.15,97026.0,97024.0,0.0001708]
[1736305123623,3.62379941,97025.0,97024.0,0.0001708]
[1736305123828,3.73772556,97025.0,97024.0,0.0001708]
[1736305124043,4.25285556,97025.0,97024.0,0.0001708]
[1736305124652,4.22202941,97025.0,97024.0,0.0001708]
[1736305126586,4.32106382,97025.0,97024.0,0.0001708]
[1736305127289,4.22202941,97025.0,97024.0,0.0001708]
[1736305132627,4.27590941,97025.0,97024.0,0.0001708]
[1736305133191,4.11592941,97025.0,97024.0,0.0001708]
[1736305133387,3.20979141,97025.0,97024.0,0.0001708]
[1736305134664,0.356134,97024.0,97021.0,0.0001708]
[1736305134838,0.356138,97022.0,97021.0,0.0001708]
[1736305135212,3.79173541,97022.0,97021.0,0.0001708]
[1736305135450,3.89076982,97022.0,97021.0,0.0001708]
[1736305135690,3.79173541,97022.0,97021.0,0.0001708]
[1736305138711,4.11593541,97022.0,97021.0,0.0001708]
[1736305140431,0.15,97019.0,97017.0,0.0001708]
[1736305140644,3.47404882,97018.0,97017.0,0.0001708]
[1736305140943,3.98917882,97018.0,97017.0,0.0001708]
[1736305141295,3.89014441,97018.0,97017.0,0.0001708]
[1736305141522,0.1,97013.0,97012.0,1e-08]
[1736305141723,0.88716441,97013.0,97012.0,1e-08]
[1736305141927,1.09332141,97013.0,97012.0,1e-08]
[1736305142512,0.97473995,97013.0,97012.0,1e-08]
[1736305142711,0.97032141,97013.0,97012.0,1e-08]
[1736305143013,0.97132141,97013.0,97012.0,1e-08]
[1736305143475,0.98169509,97013.0,97012.0,1e-08]
[1736305144417,0.98269509,97013.0,97012.0,1e-08]
[1736305144907,1.30589509,97013.0,97012.0,1e-08]
[1736305145389,1.30689509,97013.0,97012.0,1e-08]
[1736305151175,1.30734703,97013.0,97012.0,1e-08]
[1736305151576,1.30689509,97013.0,97012.0,1e-08]
[1736305153412,1.30589509,97013.0,97012.0,1e-08]
[1736305154252,1.30689509,97013.0,97012.0,1e-08]
[1736305154834,0.412336,97008.0,97004.0,0.05017071]
[1736305155070,0.09903441,97007.0,97004.0,0.05017071]
[1736305155247,0.15,97006.0,97004.0,0.05017071]
[1736305155476,3.486563,97006.0,97005.0,0.01027398]
[1736305156611,3.692735,97006.0,97005.0,0.01027398]
[1736305157013,3.671537,97006.0,97005.0,0.01027398]
[1736305157846,3.671537,97006.0,97004.0,0.05017071]
[1736305158162,2.908221,97005.0,97004.0,0.05017071]
[1736305158369,3.423351,97005.0,97004.0,0.05017071]
[1736305158923,3.275192,97005.0,97004.0,0.06044486]
[1736305159131,2.696212,97005.0,97004.0,0.14194486]
[1736305162806,2.696212,97005.0,97004.0,0.23453052]
[1736305163628,2.696212,97005.0,97004.0,0.14194486]
[1736305164034,2.69549671,97005.0,97004.0,0.14194486]
[1736305164236,2.69549671,97005.0,97004.0,0.28082569]
[1736305164662,2.69549671,97005.0,97004.0,0.28864863]
[1736305164865,2.79453112,97005.0,97004.0,0.54949927]
[1736305165450,2.79453112,97005.0,97004.0,0.41061844]
[1736305165757,2.79453112,97005.0,97004.0,0.4270655]
[1736305166191,2.79453112,97005.0,97004.0,0.61272303]
[1736305166728,2.79453112,97005.0,97004.0,0.59627597]
[1736305166941,2.79453112,97005.0,97004.0,0.41061844]
[1736305167971,2.79453112,97005.0,97004.0,0.4027955]
[1736305168445,2.79453112,97005.0,97004.0,0.39252135]
[1736305169009,2.79453112,97005.0,97004.0,0.39853223]
[1736305169595,2.79453112,97005.0,97004.0,0.61090112]
[1736305169796,0.76344912,97005.0,97004.0,0.61090112]
[1736305170179,3.58488212,97005.0,97004.0,0.42526694]
[1736305170641,3.58488212,97005.0,97004.0,0.40881439]
[1736305170946,3.58488212,97005.0,97004.0,0.58843769]
[1736305171720,3.90908212,97005.0,97004.0,0.58843769]
[1736305171966,3.90908212,97005.0,97004.0,0.57815553]
[1736305172968,3.90908212,97005.0,97004.0,0.58843909]
[1736305173775,3.90564261,97005.0,97004.0,0.58843909]
[1736305174953,3.90564261,97005.0,97004.0,0.40280491]
[1736305175582,3.90564261,97005.0,97004.0,0.06045427]
[1736305175787,3.91102337,97005.0,97004.0,0.06045427]
[1736305175992,3.91102337,97005.0,97004.0,0.05017071]
[1736305178773,3.91102337,97005.0,97004.0,0.14297939]
[1736305179770,3.91102337,97005.0,97004.0,0.54224263]
[1736305180097,3.91102337,97005.0,97004.0,0.54827535]
[1736305180411,3.91102337,97005.0,97004.0,0.20569691]
[1736305180862,3.91102337,97005.0,97004.0,0.06045128]
[1736305181100,3.96490337,97005.0,97004.0,0.06045128]
[1736305181665,3.96490337,97005.0,97004.0,0.40306125]
[1736305182517,3.90399237,97005.0,97004.0,0.40306125]
[1736305183931,3.90399237,97005.0,97004.0,0.39278068]
[1736305184134,3.90399237,97005.0,97004.0,0.05017071]
[1736305185271,0.15,97004.0,97003.0,0.13924791]
[1736305185486,3.79177441,97004.0,97003.0,0.13924791]
[1736305186658,3.79177441,97004.0,97003.0,0.14952701]
[1736305187022,3.79177441,97004.0,97003.0,0.13924791]
[1736305187237,3.79177441,97004.0,97003.0,0.52831614]
[1736305187943,3.79177441,97004.0,97003.0,0.34268196]
[1736305188502,3.79177441,97004.0,97003.0,0.4819327]
[1736305189550,4.11597441,97004.0,97003.0,0.4819327]
[1736305191223,4.11597441,97004.0,97003.0,0.14952945]
[1736305191835,4.11597441,97004.0,97003.0,0.13925074]
[1736305196888,4.11597441,97004.0,97002.0,0.13925074]
[1736305197115,2.92046741,97003.0,97002.0,0.13898327]
[1736305197325,2.92046741,97003.0,97001.0,0.0001706]
[1736305197326,3.43559741,97003.0,97001.0,0.0001706]
[1736305197522,3.177614,97002.0,97001.0,0.0001706]
[1736305197755,3.79177841,97002.0,97001.0,0.0001706]
[1736305197904,3.79177841,97002.0,97001.0,0.01045243]
[1736305198451,3.79177841,97002.0,97001.0,0.35310145]
[1736305200256,4.11597841,97002.0,97001.0,0.35310145]
[1736305201092,4.13897841,97002.0,97001.0,0.35310145]
[1736305201303,4.21657841,97002.0,97001.0,0.35310145]
[1736305201543,4.30059158,97002.0,97001.0,0.35310145]
[1736305201741,4.21657841,97002.0,97001.0,0.35310145]
[1736305201947,4.21657841,97002.0,97001.0,0.34281962]
[1736305203663,4.21657841,97002.0,97001.0,0.31705392]
[1736305204074,0.023,97001.0,96998.0,0.18563418]
[1736305204281,0.15,96999.0,96998.0,0.18563418]
[1736305204455,3.58559741,96999.0,96998.0,0.18563418]
[1736305204665,3.93279741,96999.0,96998.0,0.18563418]
[1736305204888,3.93279741,96999.0,96989.0,8.53e-05]
[1736305204889,0.25,96997.0,96996.0,0.18563418]
[1736305205094,3.70859741,96997.0,96996.0,0.18563418]
[1736305205296,3.78869741,96997.0,96996.0,0.16386581]
[1736305206120,3.78869741,96997.0,96996.0,9.963e-05]
[1736305206530,0.96726441,96997.0,96996.0,9.963e-05]
[1736305206747,3.78869741,96997.0,96996.0,9.963e-05]
[1736305207934,3.84253741,96997.0,96996.0,9.963e-05]
[1736305208337,3.84791879,96997.0,96996.0,9.963e-05]
[1736305208958,3.53484379,96997.0,96996.0,9.963e-05]
[1736305209139,3.44072179,96997.0,96996.0,9.963e-05]
[1736305209342,3.34284379,96997.0,96996.0,9.963e-05]
[1736305209966,3.36584379,96997.0,96996.0,9.963e-05]
[1736305210194,3.39130039,96997.0,96996.0,9.963e-05]
[1736305210540,3.69004379,96997.0,96996.0,9.963e-05]
[1736305213485,3.69104379,96997.0,96996.0,9.963e-05]
[1736305214106,3.69204379,96997.0,96996.0,9.963e-05]
[1736305214684,3.79204379,96997.0,96996.0,9.963e-05]
[1736305215081,3.79104379,96997.0,96996.0,9.963e-05]
[1736305215286,0.680406,96990.0,96989.0,8.53e-05]
[1736305215437,1.31757041,96990.0,96989.0,0.0002382]
[1736305216485,4.13900341,96990.0,96989.0,0.0002382]
[1736305219405,4.10600341,96990.0,96989.0,0.0002382]
[1736305220747,4.116238,96990.0,96989.0,0.0002382]
[1736305221760,3.433694,96990.0,96989.0,0.0002382]
[1736305228816,3.34161,96990.0,96989.0,0.01050738]
[1736305229324,3.34161,96990.0,96989.0,0.00777328]
[1736305229582,0.123,96980.0,96979.0,0.11280738]
[1736305229833,3.19346741,96980.0,96979.0,0.03027538]
[1736305230139,0.673,96977.0,96976.0,0.04776881]
[1736305230393,0.173,96969.0,96964.0,8.54e-05]
[1736305230633,0.356255,96967.0,96964.0,8.54e-05]
[1736305230895,3.79185241,96967.0,96966.0,0.00059496]
[1736305231255,4.11485241,96967.0,96966.0,0.00059496]
[1736305232103,4.12023279,96967.0,96966.0,0.00059496]
[1736305232310,4.2971672,96967.0,96966.0,0.00059496]
[1736305232548,4.19813279,96967.0,96966.0,0.00059496]
[1736305233598,3.91028079,96967.0,96966.0,0.00059496]
[1736305233802,2.74585679,96967.0,96966.0,0.00059496]
[1736305234430,3.07005679,96967.0,96966.0,0.00059496]
[1736305234669,1.70089979,96967.0,96966.0,0.00059496]
[1736305234890,3.29232365,96967.0,96966.0,0.00059496]
[1736305235113,2.93347713,96967.0,96966.0,0.00059496]
[1736305235874,2.91062813,96967.0,96966.0,0.00059496]
[1736305238485,2.90524775,96967.0,96966.0,0.00059496]
[1736305238663,2.91062602,96967.0,96966.0,0.00059496]
[1736305241323,2.88762602,96967.0,96966.0,0.00059496]
[1736305241746,2.92541226,96967.0,96966.0,0.00059496]
[1736305242917,0.15,96966.0,96964.0,1e-08]
[1736305243123,0.45529341,96965.0,96964.0,1e-08]
[1736305243339,0.1,96958.0,96957.0,4.531e-05]
[1736305243523,4.23907141,96958.0,96957.0,4.531e-05]
[1736305243797,0.473,96957.0,96956.0,0.00646441]
[1736305244006,3.90859741,96957.0,96956.0,0.00646441]
[1736305244645,4.09129741,96957.0,96956.0,4.1e-07]
[1736305244853,1.36986441,96957.0,96956.0,4.1e-07]
[1736305245067,1.36986441,96957.0,96929.0,0.0762]
[1736305245068,0.356294,96949.0,96948.0,0.07735499]
[1736305245286,0.99345841,96949.0,96948.0,0.07735499]
[1736305245511,0.680538,96928.0,96927.0,8.54e-05]
[1736305245718,1.34854241,96928.0,96927.0,8.54e-05]
[1736305246772,4.16997541,96928.0,96927.0,8.54e-05]
[1736305246977,4.17008025,96928.0,96927.0,8.54e-05]
[1736305247384,4.19308025,96928.0,96927.0,8.54e-05]
[1736305247637,4.19308025,96928.0,96888.0,0.00103187]
[1736305247638,0.456366,96915.0,96900.0,0.1285]
[1736305247835,3.89196341,96915.0,96900.0,0.1285]
[1736305248249,3.89196341,96915.0,96901.0,0.01631454]
[1736305248862,3.99099782,96915.0,96900.0,0.1285]
[1736305249281,3.79196341,96915.0,96900.0,0.1285]
[1736305249494,4.11616341,96915.0,96900.0,0.1285]
[1736305251852,4.11616341,96915.0,96900.0,0.0497]
[1736305252061,0.15,96907.0,96893.0,0.0777]
[1736305252271,0.356411,96894.0,96893.0,0.0777]
[1736305252482,3.79200841,96894.0,96893.0,0.0777]
[1736305252708,3.79200841,96894.0,96891.0,0.0489]
[1736305252709,0.15,96893.0,96891.0,0.0489]
[1736305252920,3.58559741,96893.0,96891.0,0.0489]
[1736305253136,0.76416441,96893.0,96891.0,0.0489]
[1736305253353,3.65475253,96893.0,96892.0,0.01026747]
[1736305253565,3.5857022,96893.0,96892.0,0.01018207]
[1736305253773,0.15,96892.0,96876.0,7e-05]
[1736305254006,0.356447,96877.0,96876.0,7e-05]
[1736305254220,2.34668,96877.0,96876.0,7e-05]
[1736305254444,1.042015,96877.0,96876.0,0.14405768]
[1736305254856,1.042015,96877.0,96876.0,0.16441382]
[1736305257247,0.52521162,96877.0,96876.0,0.16441382]
[1736305257523,0.61683762,96877.0,96876.0,0.16441382]
[1736305257715,0.61683762,96877.0,96876.0,0.14405768]
[1736305258046,0.56953962,96877.0,96876.0,0.14405768]